bitfinex/quotes_ETHUSD_20250131
["timestamp","ask_amount","ask_price","bid_price","bid_amount"]
[1738350172597,8.3058097,3322.7,3322.6,4.24e-06]
[1738350172801,8.260633,3322.7,3322.6,4.24e-06]
[1738350173008,6.2436,3322.7,3322.6,4.24e-06]
[1738350173535,3.2436,3322.7,3322.6,4.24e-06]
[1738350173696,0.234,3322.7,3322.6,4.24e-06]
[1738350174413,0.234,3322.9,3322.6,4.24e-06]
[1738350175004,3.0088,3323.6,3322.7,0.0861]
[1738350175199,3.24293,3323.5,3322.7,0.0861]
[1738350175733,3.00896,3323.4,3322.7,0.0861]
[1738350177444,3.00827,3324.2,3322.8,0.03009108]
[1738350177758,0.234,3323.8,3322.9,3.8638352]
[1738350177956,2.384,3324.4,3323.1,0.0861]
[1738350178239,0.234,3324.8,3323.5,0.0861]
[1738350178535,3.24162,3324.9,3323.6,0.48109352]
[1738350178780,3.00779,3324.7,3323.6,0.48109352]
[1738350179363,3.00771,3324.8,3323.6,0.51117323]
[1738350179587,3.00784,3324.7,3323.6,0.51117323]
[1738350179784,3.0,3324.4,3323.6,0.0861]
[1738350179938,3.00866,3323.8,3323.2,0.0861]
[1738350180138,3.00847,3324.0,3323.2,0.0861]
[1738350180345,0.8202,3324.5,3323.2,0.0861]
[1738350180667,3.00847,3324.0,3323.2,0.0861]
[1738350180849,0.8202,3324.5,3323.2,0.0861]
[1738350181049,3.00839,3324.1,3323.2,0.0861]
[1738350181377,0.8202,3324.5,3323.2,0.0861]
[1738350181378,3.0,3323.8,3323.2,0.0861]
[1738350181546,3.00836,3324.1,3323.2,0.0861]
[1738350181748,0.234,3324.1,3323.2,0.0861]
[1738350182242,0.234,3324.1,3323.4,0.0861]
[1738350182459,0.8268,3325.4,3323.6,0.0861]
[1738350182460,3.83403,3325.4,3323.6,0.0861]
[1738350182753,3.00764,3324.9,3323.8,0.0861]
[1738350182950,3.00768,3324.9,3323.8,0.0861]
[1738350183151,3.00744,3325.1,3323.8,0.0861]
[1738350183356,3.624673,3325.3,3324.0,0.0861]
[1738350183357,0.234,3325.0,3324.0,0.0861]
[1738350183879,3.00827,3324.2,3324.0,0.0861]
[1738350184055,3.00827,3324.2,3322.6,4.24e-06]
[1738350184056,0.55,3324.1,3323.6,0.0861]
[1738350184244,3.00769,3324.8,3323.6,0.0861]
[1738350184245,4.03497,3325.0,3323.6,0.0861]
[1738350184441,3.00757,3325.0,3323.6,0.0861]
[1738350184637,1.56898956,3325.5,3324.0,0.0861]
[1738350184849,3.00815,3324.3,3324.2,0.0861]
[1738350185053,0.300815,3324.3,3323.3,0.0861]
[1738350185285,0.300815,3324.3,3321.1,0.234]
[1738350185286,3.00887,3323.5,3322.7,0.0861]
[1738350185443,0.55,3323.4,3322.7,0.0861]
[1738350185643,3.00887,3323.5,3322.7,0.0861]
[1738350186284,3.009,3323.4,3322.7,0.0861]
[1738350186713,0.234,3323.6,3322.8,0.03009137]
[1738350186889,0.0301767,3324.0,3322.7,0.0861]
[1738350187197,0.234,3324.8,3321.9,3.8638352]
[1738350187198,3.00794,3324.6,3323.1,0.0861]
[1738350187400,3.332094,3324.6,3323.3,0.0861]
[1738350187599,3.00747,3325.1,3323.3,0.0861]
[1738350187784,3.00789,3324.6,3323.5,0.0861]
[1738350187985,3.00807,3324.4,3323.5,0.0861]
[1738350188283,3.24197,3324.5,3323.5,0.0861]
[1738350188485,3.00821,3324.3,3323.5,0.0861]
[1738350188798,0.625018,3324.3,3323.5,0.0861]
[1738350188998,0.7967,3324.4,3323.5,0.0861]
[1738350189159,3.00833,3324.1,3323.5,0.0861]
[1738350189364,3.00831,3324.2,3323.5,0.0861]
[1738350189716,0.55,3323.9,3322.7,0.0861]
[1738350189897,3.00907,3323.3,3322.7,0.0861]
[1738350190399,3.00875,3323.7,3322.7,0.0861]
[1738350190566,3.00887,3323.6,3322.7,0.0861]
[1738350190762,3.55888,3323.5,3322.7,0.0861]
[1738350191364,0.55,3323.6,3322.7,0.0861]
[1738350191596,3.5588,3323.6,3322.7,0.0861]
[1738350192102,0.55,3323.6,3322.7,0.0861]
[1738350192285,3.55879,3323.6,3322.8,0.03009067]
[1738350192499,0.355879,3323.6,3322.7,0.0861]
[1738350192681,3.00852,3323.9,3322.7,0.0861]
[1738350192994,3.00872,3323.7,3322.7,0.0861]
[1738350193194,3.0089,3323.5,3322.7,0.0861]
[1738350193397,0.55,3323.4,3322.7,0.0861]
[1738350193835,3.00906,3323.3,3322.7,0.0861]
[1738350193988,0.233,3323.2,3322.7,0.0861]
[1738350195003,3.00858,3323.9,3322.8,0.03009163]
[1738350195192,3.00871,3323.7,3322.8,0.03009163]
[1738350195385,0.233,3323.6,3322.8,0.03009163]
[1738350195623,0.233,3323.6,3322.7,0.0861]
[1738350195826,0.233,3323.6,3322.9,0.0861]
[1738350196025,0.233,3323.9,3322.9,0.0861]
[1738350196330,0.233,3323.9,3323.0,0.03008517]
[1738350196492,0.233,3323.9,3322.6,3.00000424]
[1738350196493,0.233,3323.9,3322.7,0.0861]
[1738350196695,0.233,3323.9,3322.9,0.0861]
[1738350197104,3.77446,3324.8,3323.1,0.0861]
[1738350197307,3.00794,3324.6,3323.3,0.0861]
[1738350197707,3.008,3324.5,3323.3,0.0861]
[1738350198215,3.0,3325.0,3323.0,3.8638352]
[1738350198216,0.233,3325.0,3323.5,0.0861]
[1738350198407,3.00766,3324.9,3323.5,0.0861]
[1738350198604,3.2406,3325.0,3323.5,0.0861]
[1738350198605,3.0077,3324.8,3323.5,0.0861]
[1738350199315,0.55,3324.7,3323.6,0.03007953]
[1738350199519,0.55,3324.7,3323.7,0.0861]
[1738350199695,0.233,3325.0,3323.8,0.03007955]
[1738350199897,0.233,3325.0,3323.9,0.0861]
[1738350200141,0.233,3325.0,3324.0,0.03007737]
[1738350200696,0.233,3325.0,3324.1,0.0861]
[1738350200896,0.233,3325.0,3324.2,0.03007674]
[1738350201322,0.7778,3325.6,3324.2,0.03007674]
[1738350201323,3.78484,3325.6,3324.2,0.03007674]
[1738350201526,3.618594,3325.5,3324.3,0.0861]
[1738350201702,3.00717,3325.4,3324.3,0.0861]
[1738350201898,3.0073,3325.3,3324.3,0.0861]
[1738350202105,3.55722,3325.4,3324.3,0.0861]
[1738350203219,0.55,3325.4,3324.3,0.0861]
[1738350203422,3.00654,3326.1,3324.4,0.03007392]
[1738350203614,3.307294,3326.0,3324.5,0.0861]
[1738350204124,0.300654,3326.0,3324.7,0.0861]
[1738350204323,0.233,3326.1,3324.7,0.0861]
[1738350204703,3.00665,3326.0,3324.7,0.0861]
[1738350204905,0.55,3325.8,3324.7,0.0861]
[1738350205104,0.233,3326.1,3324.7,0.0861]
[1738350205832,3.23941,3326.3,3324.7,0.0861]
[1738350206035,0.873941,3326.2,3324.9,0.0861]
[1738350206639,3.880401,3326.2,3324.9,0.0861]
[1738350206818,0.873941,3326.2,3324.9,0.0861]
[1738350207145,3.55645,3326.2,3324.9,0.0861]
[1738350207345,0.55,3326.2,3324.9,0.0861]
[1738350207661,0.233,3326.3,3325.1,0.0861]
[1738350207808,0.233,3326.3,3325.3,0.0861]
[1738350208144,0.233,3326.3,3325.3,0.11616493]
[1738350208343,0.55,3326.1,3325.3,0.0861]
[1738350208850,0.233,3326.3,3325.3,0.0861]
[1738350209841,3.00634,3326.3,3325.3,0.0861]
[1738350210142,0.55,3326.3,3325.3,0.0861]
[1738350210820,1.52545656,3326.7,3325.3,0.0861]
[1738350210821,2.35283616,3327.3,3325.3,0.0861]
[1738350211130,0.32251753,3327.7,3325.3,0.0861]
[1738350211131,3.00513,3327.7,3326.2,0.0861]
[1738350211329,3.00513,3327.7,3326.4,0.0861]
[1738350211517,3.00513,3327.7,3326.4,0.11615493]
[1738350211866,3.00517,3327.6,3326.4,0.0861]
[1738350212144,0.233,3327.7,3326.4,0.0861]
[1738350212341,0.233,3327.8,3326.4,0.0861]
[1738350212507,2.17969875,3328.0,3326.6,0.0861]
[1738350212708,0.233,3327.8,3326.7,0.03005305]
[1738350212905,0.233,3327.8,3326.6,0.0861]
[1738350213109,1.53468963,3327.4,3326.6,0.0861]
[1738350213348,0.233,3327.8,3326.6,0.0861]
[1738350213707,0.233,3327.8,3326.7,0.03005164]
[1738350214019,0.233,3327.8,3326.6,0.0861]
[1738350214223,3.00518,3327.6,3326.6,0.0861]
[1738350214423,3.00558,3327.2,3326.6,0.0861]
[1738350214649,3.00572,3327.0,3326.6,0.0861]
[1738350214811,3.00558,3327.2,3326.2,0.0861]
[1738350215011,3.00563,3327.1,3326.2,0.0861]
[1738350215212,1.56755963,3327.7,3326.2,0.0861]
[1738350215413,3.00529,3327.5,3326.4,0.0861]
[1738350215851,4.57334433,3328.1,3326.5,0.015]
[1738350216020,3.00481,3328.0,3326.6,0.0861]
[1738350216233,3.005,3327.8,3326.6,0.0861]
[1738350216446,3.00514,3327.7,3326.6,0.0861]
[1738350216647,3.00496,3327.9,3326.6,0.0861]
[1738350216859,3.55484,3328.0,3326.6,0.0861]
[1738350217060,3.00508,3327.7,3326.6,0.0861]
[1738350217262,4.05966,3327.8,3326.6,0.0861]
[1738350217437,3.00525,3327.5,3326.6,0.0861]
[1738350217954,3.00536,3327.4,3326.6,0.0861]
[1738350218158,3.00536,3327.4,3325.5,3.0]
[1738350218159,3.00571,3327.0,3325.6,0.0861]
[1738350218358,3.00593,3326.8,3325.6,0.0861]
[1738350218558,3.70602093,3326.8,3325.6,0.0861]
[1738350218871,0.70009093,3326.8,3325.6,0.0861]
[1738350219074,0.59968896,3327.6,3325.8,0.0861]
[1738350219233,0.233,3327.5,3326.1,0.0861]
[1738350219863,3.23826,3327.5,3326.2,0.0300549]
[1738350220064,3.00551,3327.3,3326.1,0.11615492]
[1738350220370,3.00536,3327.4,3326.1,0.0861]
[1738350220536,0.233,3327.5,3326.1,0.0861]
[1738350220865,3.00538,3327.4,3326.1,0.0861]
[1738350221070,3.00546,3327.3,3326.1,0.0861]
[1738350221271,3.00538,3327.4,3326.1,0.0861]
[1738350221478,3.00554,3327.2,3326.1,0.0861]
[1738350221664,3.00538,3327.4,3326.1,0.0861]
[1738350222174,3.00548,3327.3,3326.1,0.0861]
[1738350222370,3.00538,3327.4,3326.1,0.0861]
[1738350222669,1.3718,3327.8,3326.1,0.0861]
[1738350222670,4.37682,3327.8,3326.1,0.0861]
[1738350222872,0.233,3327.7,3326.3,0.0861]
[1738350223193,0.005,3328.4,3326.7,0.0861]
[1738350223507,0.005,3328.4,3326.8,6.67280421]
[1738350223644,0.238,3328.4,3326.8,3.0861]
[1738350224043,3.00482,3328.0,3326.8,0.0861]
[1738350224192,3.00473,3328.1,3326.8,0.0861]
[1738350224529,3.54165655,3328.3,3326.8,0.0861]
[1738350224829,0.233,3327.7,3326.8,0.0861]
[1738350225817,3.00525,3327.6,3326.2,0.0861]
[1738350226126,0.233,3327.7,3326.3,0.0300552]
[1738350226324,3.00519,3327.6,3326.3,0.0300552]
[1738350226692,3.00549,3327.3,3326.2,0.0861]
[1738350226887,3.00527,3327.5,3326.2,0.0861]
[1738350227194,3.00537,3327.4,3326.2,0.11615633]
[1738350227724,3.00549,3327.3,3326.2,0.11615633]
[1738350227926,3.76893,3327.2,3326.2,0.0861]
[1738350228112,3.00566,3327.1,3326.2,0.0861]
[1738350228434,3.54165655,3328.3,3326.7,0.015]
[1738350228592,3.59910312,3328.4,3326.8,0.13114732]
[1738350228798,0.233,3328.2,3326.8,0.1011]
[1738350229197,0.59460312,3328.4,3326.8,0.13114743]
[1738350229527,0.005,3328.4,3326.8,7.22280398]
[1738350229827,0.005,3328.4,3326.8,7.36503695]
[1738350230614,3.00454,3328.3,3326.8,3.8083804]
[1738350230954,3.00454,3328.3,3326.4,0.0861]
[1738350230955,0.8268,3327.8,3326.4,0.0861]
[1738350231152,0.8268,3327.8,3326.5,0.03005316]
[1738350231330,3.83184,3327.8,3326.6,0.03005305]
[1738350231531,0.8268,3327.8,3326.6,0.03005305]
[1738350231742,0.8268,3327.8,3326.7,0.015]
[1738350232046,0.8268,3327.8,3326.4,0.0861]
[1738350232047,0.8268,3327.8,3326.4,0.1161497]
[1738350232212,0.8268,3327.8,3326.5,0.03004927]
[1738350232547,3.00497,3327.9,3326.3,0.05497313]
[1738350232695,0.789,3327.6,3326.4,0.0861]
[1738350232896,3.79424,3327.6,3326.4,0.11615501]
[1738350233195,0.789,3327.6,3326.4,0.11615501]
[1738350233725,0.789,3327.6,3326.4,0.0861]
[1738350234743,0.789,3327.6,3326.4,0.11615458]
[1738350235106,3.7942,3327.6,3326.4,0.0861]
[1738350235493,3.00533,3327.5,3326.4,0.0861]
[1738350235698,3.00572,3327.0,3326.3,0.05497313]
[1738350235898,3.00562,3327.1,3326.3,0.05497313]
[1738350236221,3.00548,3327.3,3326.3,0.05497313]
[1738350236410,3.00548,3327.3,3326.1,0.0861]
[1738350236743,0.233,3327.1,3326.1,0.0861]
[1738350236946,0.7688,3326.8,3326.1,0.0861]
[1738350237108,3.00618,3326.5,3325.2,0.0861]
[1738350237307,6.54770655,3326.7,3325.3,0.03006483]
[1738350237635,3.00616,3326.5,3325.3,0.03006471]
[1738350237855,3.54165655,3326.7,3325.2,0.0861]
[1738350238041,3.00645,3326.2,3325.2,0.0861]
[1738350238213,3.00638,3326.3,3325.2,0.0861]
[1738350238415,3.00659,3326.1,3325.2,0.0861]
[1738350238633,3.384899,3326.0,3324.9,0.0861]
[1738350238853,3.00688,3325.7,3324.9,0.0861]
[1738350239161,3.00688,3325.7,3324.5,0.0861]
[1738350239162,3.23988,3325.7,3324.5,0.0861]
[1738350239299,3.00698,3325.6,3324.5,0.0861]
[1738350239499,0.7668,3325.5,3324.5,0.0861]
[1738350239729,0.7668,3325.5,3324.6,0.36277566]
[1738350240100,0.8259,3326.7,3324.9,0.0861]
[1738350240296,3.00624,3326.5,3325.1,0.0861]
[1738350240495,3.83195,3326.7,3325.3,3.0]
[1738350240496,0.8259,3326.7,3325.3,3.0]
[1738350240765,4.06493,3326.7,3325.4,0.03006337]
[1738350240911,0.8259,3326.7,3325.5,0.30300634]
[1738350241123,0.1676493,3326.9,3325.7,3.015]
[1738350241462,0.1676493,3326.9,3326.1,3.0]
[1738350241759,0.1676493,3326.9,3326.2,0.03005503]
[1738350242339,0.1676493,3326.9,3326.1,3.0]
[1738350242541,0.1676493,3326.9,3326.2,0.66277566]
[1738350242940,0.1676493,3326.9,3326.3,0.03005676]
[1738350243116,0.1676493,3326.9,3326.0,0.0861]
[1738350243317,0.1676493,3326.9,3326.1,0.03005495]
[1738350243952,0.1676493,3326.9,3326.2,0.015]
[1738350244153,0.1676493,3326.9,3326.3,0.3045055]
[1738350244450,0.1676493,3326.9,3326.5,3.0861]
[1738350244652,0.1676493,3326.9,3326.6,0.03005153]
[1738350245050,0.1676493,3326.9,3326.8,6.64275655]
[1738350245231,0.005,3328.4,3327.0,0.55]
[1738350245420,0.005,3328.4,3327.8,0.0861]
[1738350245614,0.005,3328.4,3327.8,0.11614252]
[1738350246820,0.005,3328.4,3328.1,0.0861]
[1738350247255,0.005,3328.4,3328.2,0.03004036]
[1738350247479,0.005,3328.4,3328.1,0.0861]
[1738350250466,0.005,3328.4,3328.2,0.03003789]
[1738350250632,0.005,3328.4,3328.2,0.39581733]
[1738350250828,0.005,3328.4,3328.2,0.36577944]
[1738350251385,0.005,3328.4,3327.8,0.0861]
[1738350251677,0.005,3328.4,3327.9,0.03003903]
[1738350251963,0.005,3328.4,3327.9,0.0075]
[1738350252332,0.005,3328.4,3327.8,0.11613838]
[1738350252873,0.005,3328.4,3328.2,0.1011]
[1738350253169,0.005,3328.4,3328.3,0.32511]
[1738350253366,0.005,3328.4,3328.3,0.31011]
[1738350253528,0.005,3328.4,3327.3,0.0861]
[1738350253928,0.005,3328.4,3327.7,0.0861]
[1738350254169,0.005,3328.4,3328.0,3.54165655]
[1738350254468,0.005,3328.4,3328.1,0.03004015]
[1738350254635,0.005,3328.4,3327.8,0.015]
[1738350254837,0.005,3328.4,3327.8,0.4093143]
[1738350255045,0.005,3328.4,3327.8,0.37927566]
[1738350255253,0.005,3328.4,3327.8,0.36427566]
[1738350255528,0.7773,3328.3,3327.3,0.0861]
[1738350255731,0.7773,3328.3,3327.3,0.11614261]
[1738350255932,0.005,3328.4,3327.4,0.03004624]
[1738350256157,0.005,3328.4,3327.3,0.0861]
[1738350256369,0.005,3328.4,3327.4,0.03004501]
[1738350256585,0.7773,3328.3,3327.0,0.1011]
[1738350257236,0.7773,3328.3,3327.1,0.40658382]
[1738350257635,0.005,3328.4,3327.6,3.54165655]
[1738350257869,0.005,3328.4,3327.7,0.015]
[1738350258055,0.005,3328.4,3327.6,3.54165655]
[1738350258534,0.005,3328.4,3327.8,0.0075]
[1738350258852,0.005,3328.4,3327.9,0.30075]
[1738350259371,0.005,3328.4,3328.1,3.0861]
[1738350259578,0.005,3328.4,3328.2,0.03003728]
[1738350260776,0.005,3328.4,3328.3,0.1011]
[1738350261432,0.005,3328.4,3328.3,0.0861]
[1738350261648,0.005,3328.4,3327.5,0.0861]
[1738350261849,0.7749,3328.3,3327.5,0.0861]
[1738350262276,0.7749,3328.3,3327.2,3.54165655]
[1738350262482,0.378436,3328.2,3326.8,3.54165655]
[1738350262796,3.76346,3328.2,3326.9,3.03004944]
[1738350263291,3.76346,3328.2,3326.9,0.03004944]
[1738350263792,0.7588,3328.2,3326.9,3.03004944]
[1738350264551,0.8043,3327.7,3326.7,0.0861]
[1738350264786,0.8043,3327.7,3326.4,3.54915655]
[1738350265015,0.8043,3327.7,3326.5,3.3943275]
[1738350265491,0.8043,3327.7,3326.5,0.36427566]
[1738350265689,3.00949,3328.4,3326.0,3.62775655]
[1738350265690,0.7532,3327.5,3326.0,3.62775655]
[1738350265853,0.7532,3327.4,3326.0,3.54165655]
[1738350266058,0.7532,3327.4,3325.2,2.9822]
[1738350266059,0.7739,3326.5,3325.2,0.0861]
[1738350266291,3.78014,3326.5,3325.2,0.0861]
[1738350266454,0.7739,3326.5,3325.2,0.0861]
[1738350266659,0.7739,3326.5,3325.3,0.36277566]
[1738350267495,3.00646,3326.2,3325.3,0.36277566]
[1738350267709,0.233,3326.1,3324.9,0.0075]
[1738350267871,0.7778,3326.0,3324.9,0.0075]
[1738350268687,0.7778,3326.0,3324.7,3.54165655]
[1738350269076,3.78444,3326.0,3324.7,3.54165655]
[1738350269285,0.7778,3326.0,3324.7,3.54165655]
[1738350269490,3.23972,3325.9,3324.8,0.35416565]
[1738350269796,3.00679,3325.8,3324.4,0.0936]
[1738350269999,3.00689,3325.7,3324.4,0.0936]
[1738350270174,0.8227,3325.7,3324.3,3.54165655]
[1738350270380,0.233,3325.6,3324.4,0.03007217]
[1738350270592,3.23998,3325.6,3324.3,3.54165655]
[1738350270899,3.23998,3325.6,3324.4,0.38423921]
[1738350272805,0.7851,3326.5,3325.3,3.0861]
[1738350273099,0.7851,3326.5,3325.5,0.015]
[1738350273302,0.9936,3326.9,3325.3,3.0861]
[1738350273487,0.9936,3326.9,3325.4,0.66277566]
[1738350273676,0.7606,3326.9,3325.7,0.55]
[1738350273877,0.7606,3327.3,3325.7,3.5800586]
[1738350274089,0.757,3327.8,3326.4,3.54165655]
[1738350274289,0.757,3327.8,3326.5,3.04505127]
[1738350274606,0.757,3327.8,3326.7,0.015]
[1738350274773,0.757,3327.8,3326.6,0.65867078]
[1738350275406,0.757,3327.8,3326.3,0.565]
[1738350275578,0.233,3328.1,3326.4,0.03004857]
[1738350275781,3.00495,3327.9,3326.2,0.0861]
[1738350276180,3.00495,3327.9,3326.3,0.03005209]
[1738350276613,3.00482,3328.0,3326.4,0.015]
[1738350276827,0.233,3328.1,3326.6,0.015]
[1738350277127,0.233,3328.2,3326.9,0.0861]
[1738350277355,0.233,3328.2,3327.0,0.03004857]
[1738350277818,0.233,3328.2,3326.9,0.0861]
[1738350277819,3.23764,3328.2,3326.9,0.0861]
[1738350277993,0.7694,3328.3,3327.0,0.03004983]
[1738350278394,3.77399,3328.3,3326.9,0.0861]
[1738350279001,0.005,3328.4,3327.0,0.0450486]
[1738350279292,0.005,3328.4,3327.0,3.0450486]
[1738350279631,0.005,3328.4,3327.2,0.015]
[1738350280129,0.005,3328.4,3327.6,0.0075]
[1738350280457,0.005,3328.4,3327.7,0.0075]
[1738350280626,0.005,3328.4,3328.1,0.0075]
[1738350280930,0.005,3328.4,3328.2,0.0861]
[1738350281225,0.005,3328.4,3328.3,0.03753772]
[1738350281827,0.005,3328.4,3328.3,0.04503772]
[1738350282457,0.005,3328.4,3328.2,0.39846377]
[1738350282749,0.005,3328.4,3328.3,0.03003414]
[1738350282948,0.005,3328.4,3327.8,0.0861]
[1738350283308,0.005,3328.4,3327.9,0.03754256]
[1738350283645,0.005,3328.4,3328.2,0.015]
[1738350283809,0.005,3328.4,3328.3,0.015]
[1738350284196,0.005,3328.4,3328.3,0.0450342]
[1738350286051,0.005,3328.4,3328.3,0.6811342]
[1738350286217,0.005,3328.4,3328.3,0.7360743]
[1738350286914,0.005,3328.4,3328.3,0.9360743]
[1738350287647,0.005,3328.4,3328.3,0.7360743]
[1738350288001,0.005,3328.4,3328.3,0.1560401]
[1738350288205,0.005,3328.4,3328.3,0.1485401]
[1738350288408,0.005,3328.4,3328.3,0.17857244]
[1738350288608,0.005,3328.4,3328.3,0.18607244]
[1738350288924,0.005,3328.4,3328.3,0.1560401]
[1738350289121,0.005,3328.4,3328.3,0.0549401]
[1738350290403,0.005,3328.4,3328.3,0.0699401]
[1738350290633,0.005,3328.4,3328.3,0.09997967]
[1738350290855,0.005,3328.4,3328.3,0.18607967]
[1738350291067,0.005,3328.4,3328.3,0.18606826]
[1738350292470,0.9462493,3330.2,3328.3,0.18606826]
[1738350292471,0.9462493,3330.2,3328.4,0.015]
[1738350292637,0.9462493,3330.2,3329.0,3.0075]
[1738350292840,0.9462493,3330.2,3329.1,0.6856587]
[1738350293340,0.9462493,3330.2,3329.2,0.03003]
[1738350293657,0.9462493,3330.2,3329.1,0.6856587]
[1738350294339,0.9462493,3330.2,3328.6,0.030033]
[1738350294670,0.9462493,3330.2,3328.7,0.0075]
[1738350294871,0.9462493,3330.2,3328.8,0.03003301]
[1738350295772,3.9491293,3330.2,3328.7,0.0300331]
[1738350295976,0.9462493,3330.2,3327.9,3.84908695]
[1738350296266,0.823,3329.9,3328.4,0.03003601]
[1738350296467,0.823,3329.9,3328.5,0.015]
[1738350296678,0.823,3329.9,3328.6,0.0300333]
[1738350296870,0.823,3329.9,3328.3,0.0861]
[1738350297051,3.82614,3329.9,3328.3,0.0861]
[1738350297253,3.385804,3329.8,3328.4,0.03003333]
[1738350297481,3.00371,3329.3,3327.5,0.0861]
[1738350297623,0.8154,3329.2,3327.6,0.03003985]
[1738350297822,0.8154,3329.2,3327.7,0.015]
[1738350298074,0.8154,3329.2,3328.1,0.0075]
[1738350298255,0.8154,3329.2,3328.2,0.309]
[1738350298456,0.232,3329.3,3328.3,0.03003681]
[1738350298679,0.232,3329.3,3328.2,0.309]
[1738350298961,0.232,3329.3,3328.2,0.3015]
[1738350299369,0.8115,3329.1,3327.9,0.0861]
[1738350300191,0.8115,3329.1,3328.0,0.03754226]
[1738350300411,0.8115,3329.1,3328.1,0.0075]
[1738350300561,0.7649,3329.7,3328.2,0.0075]
[1738350300761,0.7649,3329.7,3328.3,0.03003675]
[1738350301103,0.7649,3329.7,3328.6,0.0075]
[1738350301272,0.7649,3329.7,3328.7,0.30075]
[1738350301473,0.7649,3329.7,3328.8,0.03003345]
[1738350301804,0.7649,3329.7,3328.4,0.0861]
[1738350301805,3.76824,3329.7,3328.4,0.0861]
[1738350302011,3.76824,3329.7,3328.0,0.11613936]
[1738350302170,0.7649,3329.7,3328.1,0.015]
[1738350302514,3.00342,3329.6,3328.2,0.31311394]
[1738350302660,0.55,3329.3,3328.0,0.0861]
[1738350302857,0.8188,3329.0,3327.7,0.0861]
[1738350303154,0.8188,3329.0,3326.7,0.2]
[1738350303155,0.8188,3329.0,3327.3,0.0861]
[1738350303382,3.00447,3328.4,3327.3,3.0861]
[1738350303571,3.00442,3328.5,3327.3,0.0861]
[1738350303772,0.600869,3328.5,3327.3,0.0861]
[1738350303984,4.0549,3328.8,3327.3,0.0861]
[1738350304187,1.0508,3328.8,3327.4,0.03004735]
[1738350304603,1.0508,3328.8,3327.3,0.0861]
[1738350304795,3.55423,3328.7,3327.3,0.0861]
[1738350304967,3.55423,3328.7,3327.4,0.030048]
[1738350305176,4.37538276,3328.7,3327.4,0.3116148]
[1738350305696,3.00435,3328.5,3327.4,0.3116148]
[1738350306196,3.78165,3328.4,3327.4,0.3116148]
[1738350306365,3.78165,3328.4,3327.3,0.0861]
[1738350306366,0.7772,3328.4,3327.2,3.0]
[1738350306566,0.232,3328.3,3327.0,0.0861]
[1738350306803,3.00487,3328.0,3326.6,0.0861]
[1738350307098,0.232,3328.3,3327.0,0.0861]
[1738350307297,3.00409,3328.8,3327.3,3.0861]
[1738350307298,0.7892,3328.8,3327.3,3.0861]
[1738350307502,0.7892,3328.8,3327.4,0.72346743]
[1738350307700,3.79329,3328.8,3327.4,0.72346743]
[1738350307905,0.7892,3328.8,3327.4,0.7234683]
[1738350308205,0.9834,3329.5,3327.5,0.1011]
[1738350308403,3.00355,3329.4,3327.5,0.1011]
[1738350308564,3.402345,3329.3,3327.5,0.1011]
[1738350308765,0.0301767,3329.2,3327.5,0.1011]
[1738350309200,3.00385,3329.1,3327.5,0.0861]
[1738350309376,3.402395,3329.3,3327.5,0.0861]
[1738350309582,3.402395,3329.3,3327.6,0.0075]
[1738350309794,0.34325717,3329.2,3327.7,0.0861]
[1738350309988,0.34325717,3329.2,3327.8,0.03004284]
[1738350310198,0.34325717,3329.2,3327.7,0.0861]
[1738350310405,0.0301767,3329.1,3327.7,0.0861]
[1738350310581,3.00366,3329.3,3327.7,0.0861]
[1738350310786,0.21255584,3329.4,3327.8,0.0075]
[1738350310997,0.232,3329.4,3327.8,3.0450408]
[1738350311406,0.7514,3329.5,3327.8,3.0375408]
[1738350311713,0.7514,3329.5,3327.8,3.03754063]
[1738350312013,3.75489,3329.5,3327.8,3.0075]
[1738350312217,0.7514,3329.5,3327.9,0.0861]
[1738350312372,0.0301767,3329.4,3327.9,0.52207337]
[1738350312578,0.55,3329.2,3327.9,0.0861]
[1738350312774,0.55,3329.2,3325.8,0.1]
[1738350312775,3.00416,3328.8,3327.6,0.0861]
[1738350312979,3.00443,3328.5,3326.8,0.0861]
[1738350313179,0.55,3328.6,3326.9,0.03754933]
[1738350313406,1.14595636,3328.6,3327.0,0.0861]
[1738350313620,1.560971,3328.6,3327.1,0.03004933]
[1738350313783,0.232,3328.7,3327.2,0.0375459]
[1738350314110,0.232,3328.7,3327.3,0.0861]
[1738350314708,0.232,3328.7,3327.4,0.03004593]
[1738350315118,0.232,3328.7,3327.4,0.03004592]
[1738350315316,0.63077,3328.7,3327.3,0.0861]
[1738350315518,3.00436,3328.5,3327.3,0.0861]
[1738350315681,0.55,3328.6,3327.3,0.0861]
[1738350315879,0.63077,3328.7,3327.3,0.0861]
[1738350316145,0.39877,3328.7,3327.4,0.03004957]
[1738350316436,3.00423,3328.7,3327.3,0.0861]
[1738350316577,0.232,3328.8,3327.4,0.03004819]
[1738350316777,3.55448,3328.4,3327.3,0.0861]
[1738350317015,0.8121767,3328.8,3327.3,0.0861]
[1738350317016,0.8168,3328.1,3327.3,0.0861]
[1738350317200,3.82158,3328.1,3327.0,0.0861]
[1738350317399,0.8168,3328.1,3327.0,0.0861]
[1738350317824,3.82158,3328.1,3327.0,0.0861]
[1738350318020,0.8168,3328.1,3327.0,0.0861]
[1738350318194,3.00496,3327.9,3327.0,0.0861]
[1738350318390,3.00514,3327.7,3327.0,0.0861]
[1738350318594,3.00557,3327.2,3326.4,0.0861]
[1738350318986,3.00587,3326.9,3325.6,0.61289293]